[Event "Titled Tuesday Blitz June 27 Late 2023"]
[White "reevecanada"]
[Black "Mickiewicz, Piotr"]
[BlackFideId "1114891"]
[WhiteElo "2643"]
[BlackElo "2453"]
[Result "1-0"]
[Round "3"]
[TimeControl "180+2"]
[Date "2023.06.27"]
[WhiteClock "0:00:42"]
[BlackClock "0:00:07"]
[Board "89"]

1. e4 {[%clk 0:02:58]}  c6 {[%clk 0:02:58]} 2. c4 {[%clk 0:02:56]}  d5 {[%clk 0:02:59]} 3. cxd5 {[%clk 0:02:57]}  cxd5 {[%clk 0:02:59]} 4. exd5 {[%clk 0:02:58]}  Nf6 {[%clk 0:02:58]} 5. Nc3 {[%clk 0:02:57]}  Nxd5 {[%clk 0:02:58]} 6. Nf3 {[%clk 0:02:58]}  e6 {[%clk 0:02:55]} 7. d4 {[%clk 0:02:56]}  Be7 {[%clk 0:02:55]} 8. Bd3 {[%clk 0:02:56]}  O-O {[%clk 0:02:55]} 9. h4 {[%clk 0:02:56]}  Nc6 {[%clk 0:02:44]} 10. Bb1 {[%clk 0:02:43]}  b6 {[%clk 0:02:29]} 11. Ng5 {[%clk 0:02:36]}  Nf6 {[%clk 0:02:16]} 12. Be3 {[%clk 0:02:32]}  Ba6 {[%clk 0:02:07]} 13. a3 {[%clk 0:02:20]}  Rc8 {[%clk 0:02:05]} 14. Qa4 {[%clk 0:02:11]}  Na5 {[%clk 0:01:53]} 15. Qc2 {[%clk 0:02:09]}  g6 {[%clk 0:01:37]} 16. h5 {[%clk 0:02:04]}  Nd5 {[%clk 0:01:06]} 17. Nxh7 {[%clk 0:01:53]}  Nxe3 {[%clk 0:00:58]} 18. fxe3 {[%clk 0:01:52]}  Bh4+ {[%clk 0:00:57]} 19. Kd1 {[%clk 0:01:51]}  Kxh7 {[%clk 0:00:53]} 20. hxg6+ {[%clk 0:01:50]}  Kg7 {[%clk 0:00:53]} 21. gxf7 {[%clk 0:01:51]}  Rh8 {[%clk 0:00:51]} 22. g3 {[%clk 0:01:44]}  Qg5 {[%clk 0:00:49]} 23. gxh4 {[%clk 0:01:39]}  Qg4+ {[%clk 0:00:45]} 24. Ke1 {[%clk 0:01:37]}  Rxh4 {[%clk 0:00:37]} 25. Rxh4 {[%clk 0:01:36]}  Qxh4+ {[%clk 0:00:38]} 26. Qf2 {[%clk 0:01:35]}  Qxf2+ {[%clk 0:00:38]} 27. Kxf2 {[%clk 0:01:35]}  Nb3 {[%clk 0:00:38]} 28. Ra2 {[%clk 0:01:33]}  Bc4 {[%clk 0:00:31]} 29. Be4 {[%clk 0:01:25]}  Kxf7 {[%clk 0:00:21]} 30. a4 {[%clk 0:01:23]}  a5 {[%clk 0:00:20]} 31. Ra3 {[%clk 0:01:22]}  Ke7 {[%clk 0:00:20]} 32. Nb5 {[%clk 0:01:21]}  Rf8+ {[%clk 0:00:19]} 33. Kg3 {[%clk 0:01:13]}  Nd2 {[%clk 0:00:19]} 34. Bg2 {[%clk 0:01:11]}  Rg8+ {[%clk 0:00:19]} 35. Kf2 {[%clk 0:01:11]}  Rf8+ {[%clk 0:00:20]} 36. Ke1 {[%clk 0:01:10]}  Nf3+ {[%clk 0:00:20]} 37. Bxf3 {[%clk 0:01:10]}  Rxf3 {[%clk 0:00:21]} 38. Rc3 {[%clk 0:01:07]}  Rf1+ {[%clk 0:00:21]} 39. Kd2 {[%clk 0:01:07]}  Bxb5 {[%clk 0:00:22]} 40. axb5 {[%clk 0:01:08]}  Rf2+ {[%clk 0:00:22]} 41. Kc1 {[%clk 0:01:08]}  e5 {[%clk 0:00:22]} 42. dxe5 {[%clk 0:01:06]}  Ke6 {[%clk 0:00:22]} 43. Rc6+ {[%clk 0:01:05]}  Kxe5 {[%clk 0:00:23]} 44. Rxb6 {[%clk 0:01:06]}  Re2 {[%clk 0:00:22]} 45. Rh6 {[%clk 0:00:53]}  Kd5 {[%clk 0:00:23]} 46. b6 {[%clk 0:00:52]}  Rxe3 {[%clk 0:00:20]} 47. Kc2 {[%clk 0:00:50]}  Re2+ {[%clk 0:00:20]} 48. Kb3 {[%clk 0:00:50]}  Re3+ {[%clk 0:00:20]} 49. Ka4 {[%clk 0:00:50]}  Re7 {[%clk 0:00:18]} 50. Kxa5 {[%clk 0:00:49]}  Kc5 {[%clk 0:00:18]} 51. Ka6 {[%clk 0:00:50]}  Re4 {[%clk 0:00:17]} 52. Rh5+ {[%clk 0:00:49]}  Kc6 {[%clk 0:00:16]} 53. b3 {[%clk 0:00:44]}  Re1 {[%clk 0:00:14]} 54. b7 {[%clk 0:00:40]}  Ra1+ {[%clk 0:00:13]} 55. Ra5 {[%clk 0:00:41]}  Rxa5+ {[%clk 0:00:12]} 56. Kxa5 {[%clk 0:00:42]}  Kxb7 {[%clk 0:00:07]} 57. Kb5 {[%clk 0:00:42]} 1-0


[Site "https://www.chess.com"]

[Event "Titled Tuesday Blitz June 27 Late 2023"]
[White "Kavutskiy, Konstantin"]
[Black "Mazurkiewicz, Michal"]
[WhiteFideId "2026384"]
[BlackFideId "1124943"]
[WhiteElo "2633"]
[BlackElo "2447"]
[Result "1-0"]
[Round "3"]
[TimeControl "180+2"]
[Date "2023.06.27"]
[WhiteClock "0:00:11"]
[BlackClock "0:00:00"]
[Board "92"]

1. d4 {[%clk 0:03:00]}  Nf6 {[%clk 0:02:59]} 2. Bg5 {[%clk 0:02:59]}  e6 {[%clk 0:02:59]} 3. Nd2 {[%clk 0:02:58]}  d5 {[%clk 0:02:56]} 4. e3 {[%clk 0:02:58]}  Be7 {[%clk 0:02:56]} 5. Bd3 {[%clk 0:02:56]}  b6 {[%clk 0:02:56]} 6. c3 {[%clk 0:02:54]}  Bb7 {[%clk 0:02:57]} 7. f4 {[%clk 0:02:54]}  c5 {[%clk 0:02:57]} 8. Bxf6 {[%clk 0:02:52]}  Bxf6 {[%clk 0:02:57]} 9. Ngf3 {[%clk 0:02:46]}  O-O {[%clk 0:02:57]} 10. Ne5 {[%clk 0:02:45]}  Ba6 {[%clk 0:02:51]} 11. Bxa6 {[%clk 0:02:43]}  Nxa6 {[%clk 0:02:51]} 12. O-O {[%clk 0:02:41]}  Nc7 {[%clk 0:02:38]} 13. Ndf3 {[%clk 0:02:40]}  Nb5 {[%clk 0:02:35]} 14. g4 {[%clk 0:02:29]}  h6 {[%clk 0:02:29]} 15. Qe1 {[%clk 0:02:26]}  Nd6 {[%clk 0:02:26]} 16. h4 {[%clk 0:02:25]}  Ne4 {[%clk 0:02:02]} 17. g5 {[%clk 0:02:24]}  Bxe5 {[%clk 0:01:49]} 18. Nxe5 {[%clk 0:02:23]}  h5 {[%clk 0:01:40]} 19. f5 {[%clk 0:02:11]}  exf5 {[%clk 0:01:38]} 20. Rxf5 {[%clk 0:02:11]}  g6 {[%clk 0:01:38]} 21. Rf4 {[%clk 0:02:08]}  Qd6 {[%clk 0:01:22]} 22. Qf1 {[%clk 0:02:04]}  Ng3 {[%clk 0:00:48]} 23. Qf3 {[%clk 0:02:00]}  Nf5 {[%clk 0:00:46]} 24. Rxf5 {[%clk 0:01:52]}  gxf5 {[%clk 0:00:47]} 25. Qxh5 {[%clk 0:01:38]}  Kg7 {[%clk 0:00:46]} 26. Rf1 {[%clk 0:01:34]}  Qe6 {[%clk 0:00:43]} 27. Rf4 {[%clk 0:01:22]}  Rh8 {[%clk 0:00:30]} 28. Qf3 {[%clk 0:01:19]}  Raf8 {[%clk 0:00:29]} 29. h5 {[%clk 0:01:13]}  f6 {[%clk 0:00:26]} 30. h6+ {[%clk 0:01:05]}  Kg8 {[%clk 0:00:21]} 31. Rxf5 {[%clk 0:01:00]}  Rh7 {[%clk 0:00:07]} 32. Ng4 {[%clk 0:00:56]}  Qe4 {[%clk 0:00:03]} 33. Qxe4 {[%clk 0:00:44]}  dxe4 {[%clk 0:00:04]} 34. Nxf6+ {[%clk 0:00:40]}  Kh8 {[%clk 0:00:04]} 35. Re5 {[%clk 0:00:36]}  Rhf7 {[%clk 0:00:04]} 36. Rxe4 {[%clk 0:00:32]}  Rxf6 {[%clk 0:00:02]} 37. gxf6 {[%clk 0:00:33]}  Rxf6 {[%clk 0:00:03]} 38. Re7 {[%clk 0:00:32]}  Rxh6 {[%clk 0:00:03]} 39. Rxa7 {[%clk 0:00:31]}  Rg6+ {[%clk 0:00:04]} 40. Kf2 {[%clk 0:00:30]}  Rf6+ {[%clk 0:00:04]} 41. Ke2 {[%clk 0:00:30]}  Rh6 {[%clk 0:00:05]} 42. Kd3 {[%clk 0:00:29]}  Rh2 {[%clk 0:00:04]} 43. b3 {[%clk 0:00:29]}  Kg8 {[%clk 0:00:03]} 44. Ra6 {[%clk 0:00:28]}  cxd4 {[%clk 0:00:01]} 45. exd4 {[%clk 0:00:28]}  b5 {[%clk 0:00:02]} 46. Ra5 {[%clk 0:00:25]}  Rh3+ {[%clk 0:00:02]} 47. Ke4 {[%clk 0:00:24]}  Rxc3 {[%clk 0:00:02]} 48. Rxb5 {[%clk 0:00:24]}  Rc2 {[%clk 0:00:02]} 49. a4 {[%clk 0:00:25]}  Kf7 {[%clk 0:00:02]} 50. a5 {[%clk 0:00:24]}  Ke7 {[%clk 0:00:02]} 51. Rb7+ {[%clk 0:00:20]}  Kd6 {[%clk 0:00:02]} 52. b4 {[%clk 0:00:20]}  Ra2 {[%clk 0:00:02]} 53. Rb6+ {[%clk 0:00:19]}  Kc7 {[%clk 0:00:02]} 54. Kd5 {[%clk 0:00:19]}  Rh2 {[%clk 0:00:02]} 55. Kc5 {[%clk 0:00:19]}  Rh5+ {[%clk 0:00:02]} 56. d5 {[%clk 0:00:20]}  Rh1 {[%clk 0:00:01]} 57. Rg6 {[%clk 0:00:19]}  Rc1+ {[%clk 0:00:01]} 58. Kb5 {[%clk 0:00:20]}  Rd1 {[%clk 0:00:02]} 59. d6+ {[%clk 0:00:18]}  Kd7 {[%clk 0:00:03]} 60. Kb6 {[%clk 0:00:18]}  Rd4 {[%clk 0:00:03]} 61. b5 {[%clk 0:00:18]}  Rc4 {[%clk 0:00:03]} 62. a6 {[%clk 0:00:18]}  Rc8 {[%clk 0:00:03]} 63. a7 {[%clk 0:00:17]}  Rb8+ {[%clk 0:00:03]} 64. Ka6 {[%clk 0:00:13]}  Ra8 {[%clk 0:00:03]} 65. b6 {[%clk 0:00:12]}  Rb8 {[%clk 0:00:03]} 66. Rg7+ {[%clk 0:00:11]}  Kxd6 {[%clk 0:00:00]} 67. axb8=Q+ {[%clk 0:00:11]} 1-0


[Site "https://www.chess.com"]

[Event "Titled Tuesday Blitz June 27 Late 2023"]
[White "Karas, Marek"]
[Black "cafu1950"]
[WhiteFideId "14928558"]
[WhiteElo "2446"]
[BlackElo "2629"]
[Result "0-1"]
[Round "3"]
[TimeControl "180+2"]
[Date "2023.06.27"]
[WhiteClock "0:00:00"]
[BlackClock "0:00:18"]
[Board "93"]

1. d4 {[%clk 0:03:00]}  Nf6 {[%clk 0:03:00]} 2. Bf4 {[%clk 0:02:58]}  g6 {[%clk 0:03:01]} 3. Nc3 {[%clk 0:02:57]}  d6 {[%clk 0:03:02]} 4. e4 {[%clk 0:02:57]}  Bg7 {[%clk 0:03:02]} 5. Qd2 {[%clk 0:02:55]}  c6 {[%clk 0:02:53]} 6. Bd3 {[%clk 0:02:49]}  Nbd7 {[%clk 0:02:37]} 7. Nf3 {[%clk 0:02:36]}  b5 {[%clk 0:02:31]} 8. Bh6 {[%clk 0:02:35]}  Bxh6 {[%clk 0:02:30]} 9. Qxh6 {[%clk 0:02:35]}  b4 {[%clk 0:02:30]} 10. Ne2 {[%clk 0:02:35]}  Qc7 {[%clk 0:02:22]} 11. O-O {[%clk 0:02:28]}  Bb7 {[%clk 0:02:18]} 12. c3 {[%clk 0:02:27]}  bxc3 {[%clk 0:02:14]} 13. bxc3 {[%clk 0:02:28]}  c5 {[%clk 0:02:14]} 14. Ng3 {[%clk 0:02:26]}  c4 {[%clk 0:02:03]} 15. Bc2 {[%clk 0:02:18]}  O-O-O {[%clk 0:02:00]} 16. Qc1 {[%clk 0:02:14]}  Qa5 {[%clk 0:01:58]} 17. Qb2 {[%clk 0:01:55]}  Nb6 {[%clk 0:01:55]} 18. Rab1 {[%clk 0:01:51]}  h5 {[%clk 0:01:54]} 19. Nd2 {[%clk 0:01:27]}  Rd7 {[%clk 0:01:41]} 20. Qb4 {[%clk 0:01:22]}  Qxb4 {[%clk 0:01:39]} 21. Rxb4 {[%clk 0:01:22]}  Rc7 {[%clk 0:01:37]} 22. Rfb1 {[%clk 0:01:18]}  h4 {[%clk 0:01:35]} 23. Ne2 {[%clk 0:01:16]}  Rh5 {[%clk 0:01:31]} 24. a4 {[%clk 0:01:14]}  Ra5 {[%clk 0:01:27]} 25. Rb5 {[%clk 0:01:13]}  Rxb5 {[%clk 0:01:26]} 26. Rxb5 {[%clk 0:01:14]}  Bc6 {[%clk 0:01:17]} 27. Rb4 {[%clk 0:01:12]}  d5 {[%clk 0:00:43]} 28. a5 {[%clk 0:00:59]}  Nbd7 {[%clk 0:00:41]} 29. exd5 {[%clk 0:00:55]}  Bxd5 {[%clk 0:00:40]} 30. Nf4 {[%clk 0:00:54]}  e6 {[%clk 0:00:39]} 31. f3 {[%clk 0:00:50]}  Nb8 {[%clk 0:00:36]} 32. Ne4 {[%clk 0:00:47]}  Bxe4 {[%clk 0:00:34]} 33. fxe4 {[%clk 0:00:46]}  Na6 {[%clk 0:00:33]} 34. Rb1 {[%clk 0:00:43]}  Rb7 {[%clk 0:00:33]} 35. Rxb7 {[%clk 0:00:42]}  Kxb7 {[%clk 0:00:34]} 36. Kf2 {[%clk 0:00:39]}  Nc7 {[%clk 0:00:31]} 37. h3 {[%clk 0:00:38]}  Ka6 {[%clk 0:00:31]} 38. Ke3 {[%clk 0:00:29]}  Kxa5 {[%clk 0:00:32]} 39. Kd2 {[%clk 0:00:27]}  Kb5 {[%clk 0:00:31]} 40. Kc1 {[%clk 0:00:27]}  a5 {[%clk 0:00:31]} 41. Kb2 {[%clk 0:00:27]}  g5 {[%clk 0:00:25]} 42. Ne2 {[%clk 0:00:26]}  Nh5 {[%clk 0:00:24]} 43. Bd1 {[%clk 0:00:15]}  Ng3 {[%clk 0:00:23]} 44. Nxg3 {[%clk 0:00:09]}  hxg3 {[%clk 0:00:24]} 45. Ka3 {[%clk 0:00:07]}  f6 {[%clk 0:00:23]} 46. Ba4+ {[%clk 0:00:06]}  Kb6 {[%clk 0:00:23]} 47. Bd7 {[%clk 0:00:06]}  e5 {[%clk 0:00:22]} 48. d5 {[%clk 0:00:04]}  Na6 {[%clk 0:00:18]} 49. Bf5 {[%clk 0:00:01]}  Nc5 {[%clk 0:00:18]} 50. Bg6 {[%clk 0:00:02]}  Kc7 {[%clk 0:00:19]} 51. Bf5 {[%clk 0:00:01]}  Kd6 {[%clk 0:00:19]} 52. Bg6 {[%clk 0:00:00]}  Nd3 {[%clk 0:00:18]} 0-1


[Site "https://www.chess.com"]

[Event "Titled Tuesday Blitz June 27 Late 2023"]
[White "Zeynalli, Rashad"]
[Black "szachmistrz2500"]
[WhiteFideId "13403320"]
[WhiteElo "2623"]
[BlackElo "2439"]
[Result "0-1"]
[Round "3"]
[TimeControl "180+2"]
[Date "2023.06.27"]
[WhiteClock "0:00:44"]
[BlackClock "0:00:10"]
[Board "95"]

1. e4 {[%clk 0:03:00]}  c5 {[%clk 0:02:59]} 2. Nf3 {[%clk 0:03:00]}  d6 {[%clk 0:02:58]} 3. Bb5+ {[%clk 0:03:01]}  Bd7 {[%clk 0:02:54]} 4. Bxd7+ {[%clk 0:03:01]}  Qxd7 {[%clk 0:02:55]} 5. c4 {[%clk 0:03:01]}  Nc6 {[%clk 0:02:54]} 6. d4 {[%clk 0:02:59]}  cxd4 {[%clk 0:02:50]} 7. Nxd4 {[%clk 0:03:00]}  Nf6 {[%clk 0:02:49]} 8. Nc3 {[%clk 0:02:58]}  e6 {[%clk 0:02:45]} 9. O-O {[%clk 0:02:55]}  Be7 {[%clk 0:02:46]} 10. Be3 {[%clk 0:02:53]}  O-O {[%clk 0:02:45]} 11. f3 {[%clk 0:02:49]}  Rac8 {[%clk 0:02:39]} 12. b3 {[%clk 0:02:48]}  d5 {[%clk 0:02:35]} 13. Nxc6 {[%clk 0:02:40]}  bxc6 {[%clk 0:02:29]} 14. e5 {[%clk 0:02:40]}  Ne8 {[%clk 0:02:26]} 15. f4 {[%clk 0:02:34]}  f6 {[%clk 0:02:12]} 16. Qe2 {[%clk 0:02:27]}  d4 {[%clk 0:02:09]} 17. Rad1 {[%clk 0:02:20]}  c5 {[%clk 0:02:09]} 18. Ne4 {[%clk 0:02:14]}  f5 {[%clk 0:02:08]} 19. Nf2 {[%clk 0:02:05]}  Qb7 {[%clk 0:02:08]} 20. Bd2 {[%clk 0:01:59]}  Nc7 {[%clk 0:02:02]} 21. Nd3 {[%clk 0:01:59]}  Ra8 {[%clk 0:01:55]} 22. Ba5 {[%clk 0:01:50]}  Na6 {[%clk 0:01:45]} 23. h3 {[%clk 0:01:48]}  Nb4 {[%clk 0:01:39]} 24. Bxb4 {[%clk 0:01:45]}  cxb4 {[%clk 0:01:39]} 25. Qf3 {[%clk 0:01:45]}  Qd7 {[%clk 0:01:36]} 26. c5 {[%clk 0:01:43]}  a5 {[%clk 0:01:36]} 27. c6 {[%clk 0:01:41]}  Qa7 {[%clk 0:01:33]} 28. Rc1 {[%clk 0:01:40]}  Rac8 {[%clk 0:01:26]} 29. Rc4 {[%clk 0:01:38]}  Rc7 {[%clk 0:01:24]} 30. Rfc1 {[%clk 0:01:35]}  Rd8 {[%clk 0:01:18]} 31. g4 {[%clk 0:01:31]}  Rf8 {[%clk 0:01:16]} 32. Qf2 {[%clk 0:01:28]}  fxg4 {[%clk 0:01:11]} 33. hxg4 {[%clk 0:01:26]}  Rd8 {[%clk 0:00:57]} 34. f5 {[%clk 0:01:26]}  Bg5 {[%clk 0:00:56]} 35. Nf4 {[%clk 0:01:15]}  Bxf4 {[%clk 0:00:51]} 36. Qxf4 {[%clk 0:01:16]}  d3+ {[%clk 0:00:52]} 37. Qf2 {[%clk 0:01:16]}  Qxf2+ {[%clk 0:00:38]} 38. Kxf2 {[%clk 0:01:17]}  exf5 {[%clk 0:00:38]} 39. gxf5 {[%clk 0:01:17]}  Rf8 {[%clk 0:00:38]} 40. f6 {[%clk 0:01:16]}  gxf6 {[%clk 0:00:38]} 41. e6 {[%clk 0:01:16]}  Re8 {[%clk 0:00:36]} 42. Rg1+ {[%clk 0:01:11]}  Kf8 {[%clk 0:00:36]} 43. Re1 {[%clk 0:00:43]}  d2 {[%clk 0:00:34]} 44. Rd1 {[%clk 0:00:43]}  Rxe6 {[%clk 0:00:33]} 45. Rxd2 {[%clk 0:00:43]}  Rexc6 {[%clk 0:00:33]} 46. Rf4 {[%clk 0:00:41]}  Kf7 {[%clk 0:00:32]} 47. Rf5 {[%clk 0:00:41]}  Rc2 {[%clk 0:00:31]} 48. Ke1 {[%clk 0:00:38]}  Re7+ {[%clk 0:00:29]} 49. Kd1 {[%clk 0:00:39]}  Rxd2+ {[%clk 0:00:29]} 50. Kxd2 {[%clk 0:00:40]}  Re5 {[%clk 0:00:29]} 51. Rf4 {[%clk 0:00:40]}  Ke6 {[%clk 0:00:29]} 52. Kd3 {[%clk 0:00:40]}  h5 {[%clk 0:00:29]} 53. Kd4 {[%clk 0:00:40]}  Rg5 {[%clk 0:00:28]} 54. Re4+ {[%clk 0:00:40]}  Kd6 {[%clk 0:00:28]} 55. Re8 {[%clk 0:00:40]}  Rg4+ {[%clk 0:00:28]} 56. Ke3 {[%clk 0:00:40]}  Rg2 {[%clk 0:00:27]} 57. Rd8+ {[%clk 0:00:40]}  Ke6 {[%clk 0:00:27]} 58. Re8+ {[%clk 0:00:40]}  Kf5 {[%clk 0:00:26]} 59. Rh8 {[%clk 0:00:38]}  Kg4 {[%clk 0:00:19]} 60. Rg8+ {[%clk 0:00:38]}  Kh3 {[%clk 0:00:18]} 61. Rf8 {[%clk 0:00:39]}  Rxa2 {[%clk 0:00:17]} 62. Rxf6 {[%clk 0:00:40]}  Ra3 {[%clk 0:00:18]} 63. Rf3+ {[%clk 0:00:40]}  Kg4 {[%clk 0:00:17]} 64. Ke4 {[%clk 0:00:41]}  h4 {[%clk 0:00:17]} 65. Rf4+ {[%clk 0:00:41]}  Kg3 {[%clk 0:00:17]} 66. Rf5 {[%clk 0:00:40]}  h3 {[%clk 0:00:17]} 67. Rg5+ {[%clk 0:00:40]}  Kf2 {[%clk 0:00:17]} 68. Rh5 {[%clk 0:00:40]}  Kg2 {[%clk 0:00:17]} 69. Rg5+ {[%clk 0:00:41]}  Kh1 {[%clk 0:00:17]} 70. Rg3 {[%clk 0:00:40]}  h2 {[%clk 0:00:15]} 71. Kd4 {[%clk 0:00:40]}  a4 {[%clk 0:00:16]} 72. Kc4 {[%clk 0:00:39]}  Rxb3 {[%clk 0:00:15]} 73. Rg8 {[%clk 0:00:39]}  Rb2 {[%clk 0:00:14]} 74. Kb5 {[%clk 0:00:40]}  a3 {[%clk 0:00:11]} 75. Ka4 {[%clk 0:00:40]}  a2 {[%clk 0:00:11]} 76. Kb5 {[%clk 0:00:41]}  a1=Q {[%clk 0:00:11]} 77. Rg4 {[%clk 0:00:41]}  Qf1+ {[%clk 0:00:10]} 78. Rc4 {[%clk 0:00:42]}  Rc2 {[%clk 0:00:09]} 79. Ka4 {[%clk 0:00:42]}  Qxc4 {[%clk 0:00:09]} 80. Ka5 {[%clk 0:00:42]}  Ra2+ {[%clk 0:00:09]} 81. Kb6 {[%clk 0:00:43]}  Ra6+ {[%clk 0:00:09]} 82. Kb7 {[%clk 0:00:43]}  Qc6+ {[%clk 0:00:09]} 83. Kb8 {[%clk 0:00:44]}  Ra8# {[%clk 0:00:10]} 0-1


[Site "https://www.chess.com"]

[Event "Titled Tuesday Blitz June 27 Late 2023"]
[White "Chen, Justin"]
[Black "SergioMoralesG"]
[WhiteFideId "2098199"]
[WhiteElo "2620"]
[BlackElo "2438"]
[Result "1-0"]
[Round "3"]
[TimeControl "180+2"]
[Date "2023.06.27"]
[WhiteClock "0:00:14"]
[BlackClock "0:00:08"]
[Board "96"]

1. Nf3 {[%clk 0:00:33]}  c5 {[%clk 0:02:58]} 2. b3 {[%clk 0:00:32]}  Nc6 {[%clk 0:02:53]} 3. Bb2 {[%clk 0:00:33]}  d5 {[%clk 0:02:52]} 4. e3 {[%clk 0:00:33]}  a6 {[%clk 0:02:52]} 5. d4 {[%clk 0:00:33]}  cxd4 {[%clk 0:02:48]} 6. Nxd4 {[%clk 0:00:34]}  Nf6 {[%clk 0:02:31]} 7. c4 {[%clk 0:00:34]}  e6 {[%clk 0:02:27]} 8. Nd2 {[%clk 0:00:34]}  Bd6 {[%clk 0:02:22]} 9. Be2 {[%clk 0:00:33]}  O-O {[%clk 0:02:19]} 10. O-O {[%clk 0:00:33]}  e5 {[%clk 0:02:18]} 11. Nxc6 {[%clk 0:00:30]}  bxc6 {[%clk 0:02:19]} 12. cxd5 {[%clk 0:00:29]}  cxd5 {[%clk 0:02:18]} 13. Rc1 {[%clk 0:00:30]}  Bf5 {[%clk 0:02:13]} 14. Nf3 {[%clk 0:00:30]}  Re8 {[%clk 0:02:06]} 15. Rc6 {[%clk 0:00:24]}  a5 {[%clk 0:02:00]} 16. Qa1 {[%clk 0:00:24]}  e4 {[%clk 0:01:48]} 17. Nd4 {[%clk 0:00:21]}  Bg4 {[%clk 0:01:37]} 18. Rfc1 {[%clk 0:00:21]}  Be5 {[%clk 0:01:32]} 19. h3 {[%clk 0:00:15]}  Bd7 {[%clk 0:01:27]} 20. R6c2 {[%clk 0:00:15]}  a4 {[%clk 0:01:25]} 21. bxa4 {[%clk 0:00:15]}  Bxa4 {[%clk 0:01:21]} 22. Nc6 {[%clk 0:00:16]}  Bxc6 {[%clk 0:01:14]} 23. Rxc6 {[%clk 0:00:17]}  Bxb2 {[%clk 0:01:11]} 24. Qxb2 {[%clk 0:00:18]}  Qa5 {[%clk 0:01:09]} 25. R6c2 {[%clk 0:00:17]}  h6 {[%clk 0:01:06]} 26. Bb5 {[%clk 0:00:14]}  Re6 {[%clk 0:00:47]} 27. a4 {[%clk 0:00:14]}  Kh7 {[%clk 0:00:44]} 28. Qd4 {[%clk 0:00:15]}  Rd8 {[%clk 0:00:36]} 29. Rc7 {[%clk 0:00:15]}  Kg8 {[%clk 0:00:32]} 30. Ra7 {[%clk 0:00:15]}  Ra8 {[%clk 0:00:12]} 31. Rxa5 {[%clk 0:00:14]}  Rxa5 {[%clk 0:00:13]} 32. Rc7 {[%clk 0:00:13]}  Ne8 {[%clk 0:00:11]} 33. Rc8 {[%clk 0:00:13]}  Kh7 {[%clk 0:00:11]} 34. Rxe8 {[%clk 0:00:13]}  Rxe8 {[%clk 0:00:08]} 35. Bxe8 {[%clk 0:00:14]} 1-0


[Site "https://www.chess.com"]

[Event "Titled Tuesday Blitz June 27 Late 2023"]
[White "TimGrutter03"]
[Black "liwadas82"]
[WhiteElo "2619"]
[BlackElo "2437"]
[Result "0-1"]
[Round "3"]
[TimeControl "180+2"]
[Date "2023.06.27"]
[WhiteClock "0:00:07"]
[BlackClock "0:00:19"]
[Board "98"]

1. d4 {[%clk 0:03:00]}  Nf6 {[%clk 0:02:59]} 2. Nc3 {[%clk 0:03:01]}  e6 {[%clk 0:03:00]} 3. e4 {[%clk 0:03:01]}  d5 {[%clk 0:02:59]} 4. Bg5 {[%clk 0:03:01]}  Be7 {[%clk 0:02:56]} 5. e5 {[%clk 0:02:59]}  Nfd7 {[%clk 0:02:56]} 6. h4 {[%clk 0:03:00]}  h6 {[%clk 0:02:55]} 7. Bxe7 {[%clk 0:02:53]}  Qxe7 {[%clk 0:02:56]} 8. f4 {[%clk 0:02:53]}  a6 {[%clk 0:02:55]} 9. Nf3 {[%clk 0:02:53]}  c5 {[%clk 0:02:53]} 10. Qd2 {[%clk 0:02:51]}  Nc6 {[%clk 0:02:53]} 11. dxc5 {[%clk 0:02:49]}  Nxc5 {[%clk 0:02:49]} 12. O-O-O {[%clk 0:02:49]}  b5 {[%clk 0:02:40]} 13. Nd4 {[%clk 0:02:32]}  Nxd4 {[%clk 0:02:28]} 14. Qxd4 {[%clk 0:02:32]}  Bb7 {[%clk 0:02:25]} 15. g4 {[%clk 0:02:19]}  Rc8 {[%clk 0:02:15]} 16. Kb1 {[%clk 0:02:18]}  O-O {[%clk 0:02:06]} 17. Bd3 {[%clk 0:02:02]}  Nxd3 {[%clk 0:01:56]} 18. Rxd3 {[%clk 0:02:03]}  Rc4 {[%clk 0:01:52]} 19. Qg1 {[%clk 0:01:37]}  d4 {[%clk 0:01:50]} 20. Ne2 {[%clk 0:01:30]}  Bxh1 {[%clk 0:01:50]} 21. Qxh1 {[%clk 0:01:31]}  Qc5 {[%clk 0:01:45]} 22. Rd2 {[%clk 0:01:17]}  Rc8 {[%clk 0:01:43]} 23. Qd1 {[%clk 0:01:17]}  Rd8 {[%clk 0:01:15]} 24. c3 {[%clk 0:01:07]}  Qd5 {[%clk 0:00:57]} 25. cxd4 {[%clk 0:00:46]}  Qe4+ {[%clk 0:00:53]} 26. Ka1 {[%clk 0:00:45]}  Rdc8 {[%clk 0:00:48]} 27. a3 {[%clk 0:00:38]}  Qf3 {[%clk 0:00:41]} 28. g5 {[%clk 0:00:20]}  hxg5 {[%clk 0:00:34]} 29. hxg5 {[%clk 0:00:21]}  g6 {[%clk 0:00:28]} 30. Ka2 {[%clk 0:00:20]}  Kg7 {[%clk 0:00:27]} 31. Qe1 {[%clk 0:00:11]}  Qd5 {[%clk 0:00:24]} 32. Ka1 {[%clk 0:00:07]}  Rc2 {[%clk 0:00:24]} 33. Nc3 {[%clk 0:00:06]}  R8xc3 {[%clk 0:00:19]} 34. bxc3 {[%clk 0:00:07]}  Qa2# {[%clk 0:00:19]} 0-1


[Site "https://www.chess.com"]

[Event "Titled Tuesday Blitz June 27 Late 2023"]
[White "Karthik, Advaith"]
[Black "Jarmula, Lukasz"]
[WhiteFideId "30946050"]
[BlackFideId "1160664"]
[WhiteElo "2435"]
[BlackElo "2619"]
[Result "1-0"]
[Round "3"]
[TimeControl "180+2"]
[Date "2023.06.27"]
[WhiteClock "0:00:16"]
[BlackClock "0:00:07"]
[Board "99"]

1. d4 {[%clk 0:02:59]}  d6 {[%clk 0:03:00]} 2. e4 {[%clk 0:02:58]}  Nf6 {[%clk 0:02:59]} 3. Nc3 {[%clk 0:02:58]}  e5 {[%clk 0:03:00]} 4. dxe5 {[%clk 0:02:57]}  dxe5 {[%clk 0:03:00]} 5. Qxd8+ {[%clk 0:02:57]}  Kxd8 {[%clk 0:03:01]} 6. Nf3 {[%clk 0:02:57]}  Bd6 {[%clk 0:03:00]} 7. Bg5 {[%clk 0:02:56]}  Nd7 {[%clk 0:02:54]} 8. O-O-O {[%clk 0:02:54]}  a6 {[%clk 0:02:50]} 9. h3 {[%clk 0:02:50]}  b5 {[%clk 0:02:45]} 10. a4 {[%clk 0:02:49]}  bxa4 {[%clk 0:02:41]} 11. Bc4 {[%clk 0:02:48]}  a3 {[%clk 0:02:36]} 12. b3 {[%clk 0:02:41]}  Ke8 {[%clk 0:02:32]} 13. Bxf6 {[%clk 0:02:23]}  Nxf6 {[%clk 0:02:31]} 14. Ng5 {[%clk 0:02:23]}  Rf8 {[%clk 0:02:29]} 15. Nd5 {[%clk 0:02:21]}  Nd7 {[%clk 0:01:22]} 16. Nxh7 {[%clk 0:02:06]}  Rh8 {[%clk 0:01:21]} 17. Ng5 {[%clk 0:02:06]}  Bb7 {[%clk 0:01:13]} 18. Nc3 {[%clk 0:01:25]}  Rf8 {[%clk 0:01:09]} 19. Kb1 {[%clk 0:01:11]}  Nb6 {[%clk 0:01:08]} 20. Bd5 {[%clk 0:01:08]}  Nxd5 {[%clk 0:01:04]} 21. exd5 {[%clk 0:01:06]}  Kd7 {[%clk 0:01:00]} 22. Ka2 {[%clk 0:01:04]}  a5 {[%clk 0:00:55]} 23. Rhe1 {[%clk 0:01:00]}  Bb4 {[%clk 0:00:51]} 24. Re3 {[%clk 0:00:57]}  Rae8 {[%clk 0:00:45]} 25. Na4 {[%clk 0:00:50]}  Bd6 {[%clk 0:00:40]} 26. c4 {[%clk 0:00:50]}  Be7 {[%clk 0:00:36]} 27. Ne4 {[%clk 0:00:43]}  Kc8 {[%clk 0:00:29]} 28. Nec5 {[%clk 0:00:41]}  Ba8 {[%clk 0:00:29]} 29. Rxe5 {[%clk 0:00:37]}  Bd6 {[%clk 0:00:29]} 30. Ree1 {[%clk 0:00:35]}  f5 {[%clk 0:00:21]} 31. Ne6 {[%clk 0:00:33]}  Rf7 {[%clk 0:00:20]} 32. Ng5 {[%clk 0:00:27]}  Rfe7 {[%clk 0:00:20]} 33. Rxe7 {[%clk 0:00:25]}  Rxe7 {[%clk 0:00:21]} 34. c5 {[%clk 0:00:23]}  Be5 {[%clk 0:00:18]} 35. d6 {[%clk 0:00:18]}  cxd6 {[%clk 0:00:17]} 36. Nb6+ {[%clk 0:00:18]}  Kb7 {[%clk 0:00:17]} 37. Nxa8 {[%clk 0:00:18]}  Kxa8 {[%clk 0:00:16]} 38. cxd6 {[%clk 0:00:15]}  Rd7 {[%clk 0:00:16]} 39. Rd5 {[%clk 0:00:16]}  Bf4 {[%clk 0:00:12]} 40. Ne6 {[%clk 0:00:16]}  Bh2 {[%clk 0:00:08]} 41. g3 {[%clk 0:00:15]}  Bg1 {[%clk 0:00:08]} 42. Nc5 {[%clk 0:00:14]}  Rd8 {[%clk 0:00:07]} 43. d7 {[%clk 0:00:14]}  Bxf2 {[%clk 0:00:07]} 44. Ne6 {[%clk 0:00:14]}  Bb6 {[%clk 0:00:07]} 45. Nxd8 {[%clk 0:00:15]}  Bxd8 {[%clk 0:00:08]} 46. Rxf5 {[%clk 0:00:15]}  Kb7 {[%clk 0:00:08]} 47. Kxa3 {[%clk 0:00:15]}  Kc7 {[%clk 0:00:08]} 48. Rf7 {[%clk 0:00:16]}  Kd6 {[%clk 0:00:07]} 49. Rxg7 {[%clk 0:00:16]} 1-0


[Site "https://www.chess.com"]